bitfinex-derivatives/quotes_BTCF0:USTF0_20241109
["timestamp","ask_amount","ask_price","bid_price","bid_amount"]
[1731193079888,0.001,76601.0,76595.0,0.3608]
[1731193080086,0.065247,76597.0,76595.0,0.3608]
[1731193080288,0.065247,76597.0,76594.0,0.0267544]
[1731193080595,0.065248,76596.0,76592.0,0.03]
[1731193080786,0.065248,76596.0,76595.0,0.002]
[1731193080987,0.065248,76596.0,76595.0,0.003]
[1731193081395,0.065248,76596.0,76595.0,0.002]
[1731193081701,0.065248,76596.0,76594.0,0.002]
[1731193081891,0.0061,76604.0,76594.0,0.002]
[1731193082092,0.065243,76602.0,76595.0,0.003]
[1731193082600,0.065243,76602.0,76593.0,0.06525]
[1731193083303,0.0061,76604.0,76595.0,0.004]
[1731193083304,0.065244,76601.0,76595.0,0.004]
[1731193083795,0.065244,76601.0,76595.0,0.069248]
[1731193083995,0.065244,76601.0,76595.0,0.065248]
[1731193084202,0.065244,76601.0,76597.0,0.065246]
[1731193084805,0.066244,76601.0,76597.0,0.065246]
[1731193085093,0.001,76601.0,76593.0,0.41251142]
[1731193085292,0.001,76601.0,76599.0,0.065245]
[1731193086499,0.0061,76604.0,76600.0,0.065244]
[1731193086715,0.001,76601.0,76600.0,0.065244]
[1731193087194,0.065239,76607.0,76600.0,0.065244]
[1731193087396,0.001,76601.0,76600.0,0.065244]
[1731193091206,0.001,76601.0,76600.0,0.426044]
[1731193093202,0.001,76601.0,76600.0,0.457144]
[1731193094295,0.0061,76609.0,76608.0,0.065237]
[1731193094495,0.3608,76615.0,76614.0,0.065232]
[1731193096894,0.3618,76615.0,76614.0,0.065232]
[1731193097607,0.3618,76615.0,76614.0,0.041232]
[1731193098998,0.001,76615.0,76614.0,0.041232]
[1731193099503,0.065228,76619.0,76613.0,0.02737529]
[1731193099698,0.065228,76619.0,76616.0,0.065231]
[1731193100503,0.065231,76616.0,76611.0,0.065235]
[1731193100807,0.065231,76616.0,76614.0,0.065232]
[1731193101509,0.065231,76616.0,76608.0,0.42739941]
[1731193101709,0.065231,76616.0,76615.0,0.065232]
[1731193103411,0.066231,76616.0,76615.0,0.065232]
[1731193106514,0.066231,76616.0,76615.0,0.426032]
[1731193106702,0.066231,76616.0,76615.0,0.065232]
[1731193106900,0.001,76616.0,76615.0,0.065232]
[1731193112314,0.001,76616.0,76615.0,0.041232]
[1731193120316,0.001,76616.0,76615.0,0.08018703]
[1731193120722,0.001,76616.0,76615.0,0.16072538]
[1731193121214,0.001,76616.0,76615.0,0.12177035]
[1731193121610,0.0061,76623.0,76616.0,0.06523]
[1731193121926,0.071322,76627.0,76618.0,0.03894163]
[1731193122215,0.071322,76627.0,76617.0,0.03894163]
[1731193122421,0.071322,76627.0,76616.0,0.06523]
[1731193122422,0.071322,76627.0,76618.0,0.03894163]
[1731193122607,0.071322,76627.0,76616.0,0.06523]
[1731193123020,0.001,76623.0,76616.0,0.06523]
[1731193123217,0.001,76623.0,76616.0,0.10417163]
[1731193123416,0.001,76623.0,76617.0,0.03894163]
[1731193123919,0.065226,76622.0,76615.0,0.065231]
[1731193124219,0.065226,76622.0,76613.0,0.03894163]
[1731193124412,0.065226,76622.0,76610.0,0.3608]
[1731193124413,0.065226,76622.0,76616.0,0.06523]
[1731193124910,0.3608,76621.0,76616.0,0.06523]
[1731193125421,0.3608,76621.0,76617.0,0.065229]
[1731193125920,0.3608,76621.0,76619.0,0.065228]
[1731193126220,0.3618,76621.0,76619.0,0.065228]
[1731193127315,0.001,76621.0,76619.0,0.065228]
[1731193127512,0.001,76621.0,76620.0,0.03894163]
[1731193127914,0.001,76621.0,76619.0,0.065228]
[1731193128117,0.001,76621.0,76620.0,0.0634]
[1731193128418,0.0061,76627.0,76620.0,0.0634]
[1731193128419,0.0061,76627.0,76620.0,0.14393835]
[1731193128615,0.0061,76632.0,76628.0,0.06522]
[1731193128812,0.0061,76642.0,76628.0,0.11712581]
[1731193129119,0.0061,76642.0,76633.0,0.03892849]
[1731193129417,0.0061,76642.0,76630.0,0.08053835]
[1731193129418,0.08053835,76640.0,76631.0,0.03892849]
[1731193129622,0.0061,76642.0,76635.0,0.08053835]
[1731193129924,0.0306,76643.0,76632.0,0.03892849]
[1731193129925,0.08053835,76641.0,76632.0,0.03892849]
[1731193130312,0.08053835,76641.0,76631.0,0.10414549]
[1731193130716,0.08053835,76641.0,76632.0,0.03892849]
[1731193130915,0.0306,76643.0,76634.0,0.08053835]
[1731193131221,0.0306,76643.0,76633.0,0.3608]
[1731193131222,0.001,76639.0,76633.0,0.3608]
[1731193131622,0.08153835,76641.0,76633.0,0.3608]
[1731193131823,0.08053835,76637.0,76633.0,0.3608]
[1731193134524,0.08153835,76637.0,76633.0,0.3608]
[1731193136327,0.001,76637.0,76633.0,0.3608]
[1731193137523,0.0306,76643.0,76633.0,0.3608]
[1731193137720,0.001,76637.0,76633.0,0.3608]
[1731193139924,0.001,76637.0,76633.0,0.426016]
[1731193140932,0.001,76637.0,76634.0,0.065215]
[1731193141123,0.001,76637.0,76635.0,0.14575235]
[1731193142227,0.0306,76643.0,76635.0,0.14575235]
[1731193142422,0.001,76637.0,76635.0,0.14575235]
[1731193143829,0.001,76637.0,76633.0,0.3608]
[1731193144128,0.08053835,76634.0,76633.0,0.3608]
[1731193144435,0.065215,76635.0,76633.0,0.3608]
[1731193145631,0.066215,76635.0,76633.0,0.3608]
[1731193146925,0.066215,76635.0,76634.0,0.08053835]
[1731193147226,0.066215,76635.0,76633.0,0.3608]
[1731193150536,0.066215,76635.0,76627.0,0.065221]
[1731193150537,0.065218,76631.0,76627.0,0.065221]
[1731193151130,0.065218,76631.0,76628.0,0.06522]
[1731193151728,0.001,76635.0,76627.0,0.02628776]
[1731193151934,0.065214,76636.0,76626.0,0.3608]
[1731193152133,0.001,76631.0,76630.0,0.065219]
[1731193152834,0.001,76631.0,76626.0,0.38861488]
[1731193152835,0.06522,76629.0,76626.0,0.38861488]
[1731193153037,0.06522,76629.0,76626.0,0.38793488]
[1731193153541,0.06522,76629.0,76626.0,0.45315688]
[1731193153732,0.06522,76629.0,76626.0,0.38793488]
[1731193153932,0.001,76631.0,76627.0,0.065221]
[1731193154238,0.001,76631.0,76630.0,0.065219]
[1731193154543,0.065217,76633.0,76630.0,0.065219]
[1731193155032,0.001,76631.0,76630.0,0.065219]
[1731193155738,0.065217,76633.0,76630.0,0.065219]
[1731193155739,0.066217,76633.0,76630.0,0.065219]
[1731193157133,0.001,76631.0,76630.0,0.065219]
[1731193157734,0.065217,76632.0,76630.0,0.065219]
[1731193158344,0.001,76631.0,76630.0,0.065219]
[1731193158736,0.001,76631.0,76627.0,0.03892849]
[1731193158737,0.065219,76630.0,76627.0,0.03892849]
[1731193159041,0.065219,76630.0,76628.0,0.03892849]
[1731193160139,0.065219,76630.0,76628.0,0.10414849]
[1731193160641,0.066219,76630.0,76628.0,0.10414849]
[1731193161234,0.001,76630.0,76628.0,0.03892849]
[1731193161431,0.06522,76629.0,76628.0,0.03892849]
[1731193161634,0.26151639,76629.0,76628.0,0.03892849]
[1731193162138,0.37255474,76629.0,76628.0,0.03892849]
[1731193162334,0.40305474,76629.0,76628.0,0.03892849]
[1731193163336,0.40405474,76629.0,76628.0,0.03892849]
[1731193163739,0.26251639,76629.0,76628.0,0.03892849]
[1731193163947,0.06622,76629.0,76628.0,0.10414849]
[1731193166548,0.06622,76629.0,76628.0,0.06522]
[1731193167247,0.001,76629.0,76623.0,0.03892849]
[1731193167438,0.44133835,76624.0,76612.0,0.03892849]
[1731193167742,0.44133835,76613.0,76612.0,0.038911]
[1731193167941,0.44133835,76613.0,76602.0,0.038911]
[1731193168146,0.63634245,76613.0,76601.0,0.02755423]
[1731193168343,0.63634245,76613.0,76600.0,0.038911]
[1731193168344,0.63634245,76613.0,76598.0,0.038911]
[1731193168543,0.63634245,76613.0,76593.0,0.038911]
[1731193168739,0.0061,76611.0,76597.0,0.08053835]
[1731193168940,0.3608,76601.0,76597.0,0.08053835]
[1731193169145,0.0061,76607.0,76597.0,0.08053835]
[1731193169349,0.0061,76612.0,76597.0,0.08053835]
[1731193169642,0.19668484,76606.0,76597.0,0.08053835]
[1731193169847,0.19668484,76609.0,76597.0,0.08053835]
[1731193170049,0.19584028,76605.0,76597.0,0.08053835]
[1731193170349,0.001,76607.0,76597.0,0.08053835]
[1731193170754,0.19584028,76606.0,76597.0,0.08053835]
[1731193170938,0.19584028,76606.0,76593.0,0.02748968]
[1731193170939,0.19684028,76606.0,76593.0,0.02748968]
[1731193171142,0.3608,76599.0,76591.0,0.06328]
[1731193171342,0.08663835,76603.0,76594.0,0.3608]
[1731193171651,0.01815881,76602.0,76594.0,0.3608]
[1731193171948,0.0644,76605.0,76594.0,0.3608]
[1731193171949,0.01815881,76601.0,76594.0,0.3608]
[1731193172450,0.21358423,76604.0,76594.0,0.3608]
[1731193172647,0.0644,76605.0,76594.0,0.3608]
[1731193172648,0.01815881,76600.0,76594.0,0.3608]
[1731193172844,0.01815881,76599.0,76594.0,0.3608]
[1731193173038,0.01815881,76598.0,76594.0,0.3608]
[1731193173243,0.0644,76605.0,76594.0,0.3608]
[1731193173244,0.001,76601.0,76594.0,0.3608]
[1731193173445,0.001,76601.0,76591.0,0.08945022]
[1731193173446,0.01815881,76597.0,76591.0,0.02685022]
[1731193173652,0.3608,76599.0,76586.0,0.08053835]
[1731193173950,0.01876632,76598.0,76586.0,0.08053835]
[1731193174163,0.01876632,76598.0,76585.0,0.05818429]
[1731193174164,0.3608,76599.0,76590.0,0.3608]
[1731193174352,0.06525,76594.0,76585.0,0.02648429]
[1731193174655,0.065251,76592.0,76581.0,0.44201835]
[1731193174840,0.01875845,76591.0,76581.0,0.44133835]
[1731193175046,0.065255,76588.0,76581.0,0.3608]
[1731193175247,0.0186101,76587.0,76581.0,0.3608]
[1731193175552,0.0186101,76587.0,76579.0,0.02741795]
[1731193175553,0.3608,76582.0,76579.0,0.02741795]
[1731193175749,0.01954173,76581.0,76573.0,0.08053835]
[1731193175944,0.3608,76582.0,76578.0,0.08053835]
[1731193176951,0.065261,76580.0,76570.0,0.49985438]
[1731193177149,0.01918991,76579.0,76570.0,0.49909438]
[1731193177352,0.01918991,76579.0,76570.0,0.41855603]
[1731193178259,0.001,76579.0,76570.0,0.41855603]
[1731193184663,0.001,76579.0,76570.0,0.05775603]
[1731193184859,0.001,76579.0,76570.0,0.41855603]
[1731193185053,0.066263,76579.0,76570.0,0.41855603]
[1731193185955,0.066263,76579.0,76570.0,0.48382603]
[1731193186563,0.066263,76579.0,76570.0,0.41855603]
[1731193187458,0.066263,76579.0,76572.0,0.065267]
[1731193190565,0.066263,76579.0,76573.0,0.065266]
[1731193190767,0.03360184,76579.0,76573.0,0.065266]
[1731193191572,0.03360184,76579.0,76575.0,0.038911]
[1731193191875,0.03360184,76579.0,76574.0,0.038911]
[1731193191876,0.001,76579.0,76574.0,0.038911]
[1731193192172,0.065265,76576.0,76571.0,0.038911]
[1731193192666,0.065266,76575.0,76571.0,0.038911]
[1731193192872,0.065266,76575.0,76570.0,0.42616703]
[1731193193264,0.065268,76572.0,76570.0,0.06536703]
[1731193193474,0.065268,76572.0,76570.0,0.02645603]
[1731193193671,0.065268,76572.0,76568.0,0.497642]
[1731193193969,0.065268,76572.0,76570.0,0.038911]
[1731193194178,0.001,76576.0,76570.0,0.038911]
[1731193194362,0.066265,76576.0,76570.0,0.038911]
[1731193194563,0.066265,76576.0,76572.0,0.038911]
[1731193195375,0.065265,76576.0,76572.0,0.038911]
[1731193195571,0.065265,76576.0,76574.0,0.038911]
[1731193195762,0.065265,76576.0,76575.0,0.038911]
[1731193196080,0.066265,76576.0,76574.0,0.038911]
[1731193196462,0.001,76576.0,76574.0,0.05190581]
[1731193196663,0.066265,76576.0,76574.0,0.05190581]
[1731193197561,0.066265,76576.0,76571.0,0.12990728]
[1731193197762,0.066265,76576.0,76574.0,0.05189814]
[1731193198170,0.066265,76576.0,76575.0,0.05189814]
[1731193198467,0.065265,76576.0,76575.0,0.05189814]
[1731193198667,0.066265,76576.0,76575.0,0.05189814]
[1731193199062,0.065265,76576.0,76575.0,0.05189814]
[1731193199267,0.066265,76576.0,76575.0,0.05189814]
[1731193199473,0.066265,76576.0,76571.0,0.06463928]
[1731193200470,0.066265,76576.0,76570.0,0.3608]
[1731193200471,0.065267,76574.0,76572.0,0.06463928]
[1731193200668,0.0806183,76573.0,76572.0,0.06463928]
[1731193201271,0.0806183,76573.0,76572.0,0.16412723]
[1731193201576,0.0806183,76573.0,76572.0,0.09948798]
[1731193201577,0.1458863,76573.0,76572.0,0.09948798]
[1731193202077,0.1458863,76573.0,76572.0,0.10048798]
[1731193202272,0.1458863,76573.0,76572.0,0.10148798]
[1731193202770,0.1458863,76573.0,76570.0,0.0649849]
[1731193202771,0.0806183,76573.0,76570.0,0.0649849]
[1731193202975,0.0806183,76573.0,76549.0,0.00072]
[1731193202976,0.34305024,76573.0,76572.0,0.002]
[1731193203274,0.26243194,76573.0,76571.0,0.03900662]
[1731193203471,0.26243194,76573.0,76562.0,0.02757807]
[1731193203472,0.0806183,76572.0,76568.0,0.05200012]
[1731193203667,0.065271,76569.0,76568.0,0.05200012]
[1731193203868,0.065271,76569.0,76567.0,0.05200012]
[1731193204072,0.0806183,76568.0,76567.0,0.05200012]
[1731193204268,0.0806183,76568.0,76566.0,0.05200012]
[1731193204574,0.0806183,76568.0,76562.0,0.0649849]
[1731193204575,0.0806183,76567.0,76562.0,0.0649849]
[1731193204774,0.065275,76564.0,76562.0,0.0649849]
[1731193205271,0.0806183,76567.0,76561.0,0.0649849]
[1731193205472,0.065273,76566.0,76562.0,0.06501356]
[1731193205674,0.065273,76566.0,76556.0,0.07756714]
[1731193205675,0.065276,76563.0,76561.0,0.06501356]
[1731193205980,0.0806183,76562.0,76561.0,0.06501528]
[1731193206371,0.065278,76561.0,76559.0,0.06501528]
[1731193207468,0.0806183,76562.0,76558.0,0.06501528]
[1731193207669,0.0806183,76562.0,76554.0,0.07756714]
[1731193207670,0.001,76566.0,76556.0,0.42581528]
[1731193207865,0.065274,76565.0,76558.0,0.06501528]
[1731193208174,0.065274,76565.0,76562.0,0.065276]
[1731193208677,0.3608,76567.0,76562.0,0.065276]
[1731193208875,0.001,76566.0,76564.0,0.0806183]
[1731193209079,0.430161,76581.0,76575.0,0.065265]
[1731193209270,0.430161,76581.0,76577.0,0.10423777]
[1731193209471,0.3649,76581.0,76576.0,0.03897377]
[1731193209670,0.3649,76581.0,76579.0,0.065262]
[1731193209877,0.00903,76580.0,76579.0,0.1458803]
[1731193210171,0.00903,76580.0,76579.0,0.065262]
[1731193210380,0.00903,76580.0,76579.0,0.16474272]
[1731193211174,0.10316,76580.0,76579.0,0.16474272]
[1731193211572,0.10416,76580.0,76579.0,0.09948072]
[1731193211771,1.24697839,76580.0,76579.0,0.03895054]
[1731193211970,0.065266,76574.0,76572.0,0.03895308]
[1731193212170,0.065266,76574.0,76559.0,0.36148]
[1731193212171,0.065271,76570.0,76566.0,0.05193405]
[1731193212367,0.065271,76570.0,76560.0,0.05193405]
[1731193212368,0.12554141,76567.0,76560.0,0.05193405]
[1731193212681,0.19710626,76566.0,76559.0,0.05193405]
[1731193212878,0.19710626,76566.0,76557.0,0.05193405]
[1731193213173,0.3608,76573.0,76559.0,0.05193405]
[1731193213379,0.3608,76573.0,76562.0,0.05193405]
[1731193213575,0.3608,76573.0,76557.0,0.06489112]
[1731193213576,0.3608,76573.0,76561.0,0.05193405]
[1731193213780,0.001,76574.0,76566.0,0.3608]
[1731193213981,0.001,76574.0,76569.0,0.05193405]
[1731193214175,0.001,76574.0,76571.0,0.05193405]
[1731193214479,0.002,76574.0,76572.0,0.08413405]
[1731193214673,0.002,76574.0,76572.0,0.084121]
[1731193214872,0.002,76574.0,76573.0,0.051921]
[1731193215074,0.002,76574.0,76572.0,0.0322]
[1731193215075,0.002,76574.0,76572.0,0.084121]
[1731193215271,0.001,76574.0,76572.0,0.084121]
[1731193215470,0.001,76574.0,76572.0,0.0322]
[1731193216084,0.01846263,76573.0,76572.0,0.0322]
[1731193217788,0.01946263,76573.0,76572.0,0.0322]
[1731193218083,0.001,76573.0,76572.0,0.0322]
[1731193218888,0.002,76573.0,76572.0,0.0322]
[1731193221386,0.02055727,76573.0,76572.0,0.0322]
[1731193223081,0.002,76573.0,76572.0,0.0322]
[1731193224484,0.05933,76573.0,76572.0,0.0322]
[1731193225580,0.07754844,76573.0,76572.0,0.0322]
[1731193227786,0.07654844,76573.0,76572.0,0.0322]
[1731193227979,0.07754844,76573.0,76572.0,0.0322]
[1731193228175,0.07654844,76573.0,76572.0,0.0322]
[1731193228386,0.08698844,76573.0,76572.0,0.0322]
[1731193228687,0.08798844,76573.0,76572.0,0.0322]
[1731193229790,0.09701844,76573.0,76572.0,0.0322]
[1731193230179,0.09601844,76573.0,76572.0,0.0322]
[1731193230384,0.09701844,76573.0,76572.0,0.0322]
[1731193230785,0.0788,76573.0,76572.0,0.0322]
[1731193231188,0.09727203,76573.0,76572.0,0.0322]
[1731193231386,0.0788,76573.0,76572.0,0.0322]
[1731193233582,0.0788,76573.0,76572.0,0.084121]
[1731193233790,0.0788,76573.0,76572.0,0.0322]
[1731193233982,0.0788,76573.0,76572.0,0.09710125]
[1731193234291,0.0788,76573.0,76572.0,0.0322]
[1731193234593,0.0788,76573.0,76572.0,0.424]
[1731193234795,0.0788,76573.0,76572.0,0.48890125]
[1731193235183,0.0788,76573.0,76572.0,0.58807834]
[1731193235387,0.0788,76573.0,76572.0,0.48890125]
[1731193235695,0.12984455,76573.0,76572.0,0.48890125]
[1731193236096,0.12984455,76573.0,76572.0,0.52298053]
[1731193237494,0.12984455,76573.0,76572.0,0.52298175]
[1731193239284,0.08412681,76573.0,76572.0,0.52298175]
[1731193240880,0.09456681,76573.0,76572.0,0.52298175]
[1731193241580,0.09456681,76573.0,76572.0,0.32318175]
[1731193241985,0.09456681,76573.0,76572.0,0.38804108]
[1731193242197,0.09456681,76573.0,76572.0,0.16384108]
[1731193242387,0.09456681,76573.0,76572.0,0.192]
[1731193242792,0.10500681,76573.0,76572.0,0.192]
[1731193243985,0.10500681,76573.0,76571.0,0.426869]
[1731193244200,0.10500681,76573.0,76572.0,0.192]
[1731193245195,0.10458,76573.0,76572.0,0.192]
[1731193245593,0.10458,76573.0,76571.0,0.426749]
[1731193245794,0.10458,76573.0,76572.0,0.192]
[1731193247507,0.10458,76573.0,76572.0,0.3608]
[1731193250115,0.10458,76573.0,76572.0,0.41274439]
[1731193250803,0.10458,76573.0,76572.0,0.3608]
[1731193251715,0.10458,76573.0,76572.0,0.41274983]
[1731193253020,0.10458,76573.0,76572.0,0.3608]
[1731193253509,0.169847,76573.0,76572.0,0.3608]
[1731193255210,0.169847,76573.0,76572.0,0.41274983]
[1731193255704,0.169847,76573.0,76571.0,0.05194983]
[1731193255906,0.065269,76571.0,76569.0,0.0265253]
[1731193256105,0.065269,76571.0,76566.0,0.41342983]
[1731193256106,0.0806028,76571.0,76566.0,0.41342983]
[1731193256313,0.065272,76567.0,76566.0,0.3608]
[1731193256816,0.065272,76567.0,76559.0,0.3608]
[1731193256817,0.065273,76566.0,76559.0,0.3608]
[1731193257011,0.065278,76560.0,76559.0,0.3608]
[1731193258407,0.066278,76560.0,76559.0,0.3608]
[1731193260309,0.001,76560.0,76555.0,0.02651072]
[1731193260513,0.065285,76552.0,76546.0,0.05194983]
[1731193260717,0.48640401,76547.0,76545.0,0.02824147]
[1731193260913,0.48640401,76547.0,76535.0,0.42567205]
[1731193260914,0.065295,76540.0,76539.0,0.02680406]
[1731193261220,0.065304,76530.0,76527.0,0.43976]
[1731193261408,0.065304,76530.0,76523.0,0.065309]
[1731193262218,0.12560401,76535.0,76526.0,0.0273666]
[1731193262521,0.08376,76534.0,76523.0,0.065309]
[1731193262722,0.0929,76534.0,76521.0,0.21416832]
[1731193262922,0.0929,76534.0,76528.0,0.065305]
[1731193263311,0.0929,76534.0,76527.0,0.001]
[1731193264125,0.0929,76534.0,76527.0,0.065306]
[1731193264323,0.0929,76534.0,76533.0,0.3608]
[1731193264523,0.0939,76534.0,76533.0,0.3608]
[1731193265520,0.0929,76534.0,76533.0,0.3608]
[1731193265821,0.0939,76534.0,76533.0,0.3608]
[1731193267511,0.10335,76534.0,76533.0,0.3608]
[1731193267721,0.10435,76534.0,76533.0,0.3608]
[1731193268119,0.10335,76534.0,76533.0,0.3608]
[1731193268325,0.10435,76534.0,76533.0,0.3608]
[1731193268928,0.10435,76534.0,76533.0,0.38782718]
[1731193269324,0.10335,76534.0,76533.0,0.38782718]
[1731193269520,0.1148,76534.0,76533.0,0.38782718]
[1731193270122,0.1148,76534.0,76533.0,0.56422718]
[1731193271728,0.1138,76534.0,76533.0,0.56422718]
[1731193271923,0.1148,76534.0,76533.0,0.38782718]
[1731193272325,0.179101,76534.0,76533.0,0.38782718]
[1731193272627,0.180101,76534.0,76533.0,0.38782718]
[1731193273130,0.180101,76534.0,76533.0,0.3608]
[1731193273131,0.7678733,76534.0,76533.0,0.3608]
[1731193273425,0.7996733,76534.0,76533.0,0.3608]
[1731193273626,0.4076733,76534.0,76533.0,0.3608]
[1731193274125,0.4066733,76534.0,76533.0,0.3608]
[1731193274328,0.4076733,76534.0,76533.0,0.3608]
[1731193274522,0.180101,76534.0,76533.0,0.3608]
[1731193274725,0.179101,76534.0,76533.0,0.3608]
[1731193274934,0.180101,76534.0,76533.0,0.3608]
[1731193275625,0.572101,76534.0,76533.0,0.3608]
[1731193275924,0.180101,76534.0,76533.0,0.3608]
[1731193277334,0.1148,76534.0,76533.0,0.3608]
[1731193279839,0.065277,76562.0,76533.0,0.3608]
[1731193279840,0.3608,76564.0,76533.0,0.3608]
[1731193280024,0.0308,76575.0,76559.0,0.12560401]
[1731193280237,0.19699558,76564.0,76560.0,0.0304]
[1731193280529,0.48732401,76585.0,76562.0,0.3608]
[1731193280732,0.0308,76584.0,76565.0,0.11987401]
[1731193280927,0.0308,76584.0,76565.0,0.48067401]
[1731193281124,0.065247,76597.0,76581.0,0.3608]
[1731193281125,0.12560401,76597.0,76581.0,0.3608]
[1731193281331,0.12560401,76597.0,76590.0,0.3608]
[1731193281631,0.19471798,76593.0,76590.0,0.3608]
[1731193281838,0.19471798,76596.0,76590.0,0.3608]
[1731193281839,0.01044,76592.0,76590.0,0.3608]
[1731193282232,0.01044,76592.0,76582.0,0.0304]
[1731193282233,0.01044,76591.0,76582.0,0.0304]
[1731193282435,0.12560401,76585.0,76582.0,0.0304]
[1731193282641,0.12560401,76585.0,76574.0,0.36275865]
[1731193282835,0.23803527,76591.0,76574.0,0.36275865]
[1731193282836,0.12560401,76579.0,76574.0,0.36275865]
[1731193283341,0.12560401,76579.0,76574.0,0.00195865]
[1731193283639,0.0308,76578.0,76574.0,0.00195865]
[1731193283841,0.22720145,76578.0,76574.0,0.00195865]
[1731193288232,0.19640145,76578.0,76574.0,0.00195865]
[1731193288433,0.01044,76591.0,76575.0,0.065266]
[1731193288635,0.01044,76591.0,76589.0,0.3608]
[1731193288939,0.19683248,76590.0,76589.0,0.3608]
[1731193289132,0.01044,76591.0,76589.0,0.3608]
[1731193289340,0.01044,76591.0,76590.0,0.065253]
[1731193289633,0.01144,76591.0,76590.0,0.065253]
[1731193290043,0.01144,76591.0,76590.0,0.07456579]
[1731193290245,0.01144,76591.0,76590.0,0.065253]
[1731193290635,0.01244,76591.0,76590.0,0.065253]
[1731193290940,0.01244,76591.0,76581.0,0.48708401]
[1731193290941,0.01244,76591.0,76581.0,0.36148]
[1731193291143,0.12560401,76586.0,76581.0,0.3608]
[1731193292342,0.0321,76590.0,76581.0,0.3608]
[1731193292843,0.19502183,76589.0,76581.0,0.3608]
[1731193293646,0.001,76586.0,76581.0,0.3608]
[1731193294235,0.19602183,76589.0,76581.0,0.3608]
[1731193294433,0.19702183,76589.0,76581.0,0.3608]
[1731193294936,0.001,76586.0,76581.0,0.3608]
[1731193295338,0.001,76586.0,76576.0,0.0061]
[1731193295339,0.065264,76577.0,76576.0,0.0061]
[1731193295540,0.065264,76577.0,76574.0,0.00195865]
[1731193295749,0.12560401,76575.0,76574.0,0.00195865]
[1731193296344,0.51736401,76575.0,76574.0,0.00195865]
[1731193296549,0.4022,76575.0,76569.0,0.0061]
[1731193296733,0.01044,76575.0,76565.0,0.3669]
[1731193297336,0.01044,76575.0,76573.0,0.3608]
[1731193297337,0.01144,76575.0,76573.0,0.3608]
[1731193297643,0.01144,76575.0,76574.0,0.065266]
[1731193297951,0.01244,76575.0,76574.0,0.065266]
[1731193298349,0.01244,76575.0,76573.0,0.3608]
[1731193298350,0.01144,76575.0,76573.0,0.3608]
[1731193298649,0.01244,76575.0,76573.0,0.3608]
[1731193299542,0.01144,76575.0,76573.0,0.3608]
[1731193299744,0.01244,76575.0,76573.0,0.3608]
[1731193300341,0.01144,76575.0,76573.0,0.3608]
[1731193300644,0.01244,76575.0,76573.0,0.426067]
[1731193300846,0.01244,76575.0,76574.0,0.0302]
[1731193301342,0.01144,76575.0,76574.0,0.0302]
[1731193301549,0.01244,76575.0,76574.0,0.0302]
[1731193301744,0.0061,76584.0,76574.0,0.15580401]
[1731193302043,0.01239917,76591.0,76574.0,0.15580401]
[1731193302044,0.01849917,76591.0,76590.0,0.065253]
[1731193302244,0.01239917,76591.0,76590.0,0.426053]
[1731193303542,0.02283917,76591.0,76590.0,0.426053]
[1731193304244,0.02383917,76591.0,76590.0,0.426053]
[1731193305949,0.02283917,76591.0,76590.0,0.426053]
[1731193306845,0.02088,76591.0,76590.0,0.426053]
[1731193307343,0.02088,76591.0,76590.0,0.55165701]
[1731193307744,0.02088,76591.0,76590.0,0.426053]
[1731193308641,0.02088,76591.0,76590.0,0.4535955]
[1731193310644,0.02188,76591.0,76590.0,0.4535955]
[1731193311146,0.02188,76591.0,76590.0,0.57919951]
[1731193311550,0.0061,76602.0,76601.0,0.065243]
[1731193311850,0.065236,76610.0,76601.0,0.426043]
[1731193312044,0.12560401,76614.0,76601.0,0.3608]
[1731193312244,0.065243,76602.0,76600.0,0.0061]
[1731193312541,0.065246,76598.0,76594.0,0.0061]
[1731193312747,0.001,76591.0,76590.0,0.41917897]
[1731193312947,0.001,76591.0,76590.0,0.41837897]
[1731193313348,0.01061,76591.0,76590.0,0.39083647]
[1731193313657,0.00961,76591.0,76590.0,0.39083647]
[1731193315461,0.074862,76591.0,76590.0,0.39083647]
[1731193315643,0.074862,76591.0,76590.0,0.3608]
[1731193319359,0.00961,76591.0,76590.0,0.48640401]
[1731193319558,0.00961,76591.0,76590.0,0.55165701]
[1731193323165,0.12560401,76624.0,76590.0,0.55165701]
[1731193323166,0.3608,76636.0,76590.0,1.17808401]
[1731193323369,0.03004178,76640.0,76624.0,0.065223]
[1731193323663,0.19704932,76639.0,76631.0,0.3608]
[1731193324059,0.19704932,76642.0,76626.0,0.12560401]
[1731193324250,0.3608,76643.0,76629.0,0.3608]
[1731193324651,0.3608,76643.0,76630.0,0.00885719]
[1731193324652,0.1968171,76641.0,76630.0,0.00885719]
[1731193324961,0.3608,76643.0,76631.0,0.00885719]
[1731193325158,0.1968171,76640.0,76632.0,0.00885719]
[1731193325361,0.3608,76643.0,76629.0,0.3608]
[1731193325362,0.1968171,76641.0,76629.0,0.3608]
[1731193325563,0.3608,76643.0,76629.0,0.3608]
[1731193325564,0.3608,76643.0,76630.0,0.0143801]
[1731193325866,0.3608,76643.0,76629.0,0.3608]
[1731193325867,0.3608,76652.0,76638.0,0.12560401]
[1731193326066,0.12560401,76656.0,76636.0,0.3608]
[1731193326366,0.19496209,76647.0,76637.0,0.01436721]
[1731193326570,0.3205661,76654.0,76638.0,0.01436721]
[1731193326769,0.12560401,76654.0,76639.0,0.00884962]
[1731193326970,0.19502126,76653.0,76640.0,0.02321683]
[1731193327157,0.19502126,76653.0,76641.0,0.0232795]
[1731193327373,0.19502126,76653.0,76636.0,0.3608]
[1731193327374,0.19502126,76653.0,76642.0,0.0232795]
[1731193327659,0.19502126,76653.0,76639.0,0.12560401]
[1731193327660,0.0639,76655.0,76643.0,0.0232795]
[1731193327970,0.19589259,76654.0,76644.0,0.00895298]
[1731193328166,0.19589259,76654.0,76636.0,0.3608]
[1731193328167,0.3214966,76654.0,76645.0,0.02305834]
[1731193328361,0.3214966,76654.0,76636.0,0.3608]
[1731193328362,0.3214966,76654.0,76646.0,0.02305834]